[Event "Titled Tuesday Blitz February 28 Early 2023"]
[White "Domingo Nunez, Alejandro"]
[Black "Prieto Aranguren, Alain"]
[WhiteFideId "22245561"]
[BlackFideId "2268906"]
[WhiteElo "2230"]
[BlackElo "2209"]
[Result "1-0"]
[Round "03"]
[TimeControl "180+2"]
[Date "2023.02.28"]
[WhiteClock "0:00:12"]
[BlackClock "0:00:27"]

1. e4 {[%clk 0:02:58]}  c6 {[%clk 0:02:57]} 2. Nf3 {[%clk 0:02:57]}  d5 {[%clk 0:02:52]} 3. Nc3 {[%clk 0:02:57]}  Bg4 {[%clk 0:02:52]} 4. h3 {[%clk 0:02:56]}  Bh5 {[%clk 0:02:40]} 5. exd5 {[%clk 0:02:55]}  cxd5 {[%clk 0:02:38]} 6. Bb5+ {[%clk 0:02:54]}  Nc6 {[%clk 0:02:33]} 7. g4 {[%clk 0:02:47]}  Bg6 {[%clk 0:02:33]} 8. Ne5 {[%clk 0:02:42]}  Rc8 {[%clk 0:02:33]} 9. d4 {[%clk 0:02:38]}  e6 {[%clk 0:02:30]} 10. Qe2 {[%clk 0:02:37]}  Bb4 {[%clk 0:02:29]} 11. h4 {[%clk 0:02:35]}  Ne7 {[%clk 0:02:29]} 12. h5 {[%clk 0:02:35]}  Be4 {[%clk 0:02:29]} 13. f3 {[%clk 0:02:29]}  O-O {[%clk 0:02:29]} 14. Bxc6 {[%clk 0:02:28]}  Nxc6 {[%clk 0:02:29]} 15. Nxc6 {[%clk 0:02:28]}  Rxc6 {[%clk 0:02:27]} 16. O-O {[%clk 0:02:04]}  Bxc3 {[%clk 0:02:25]} 17. bxc3 {[%clk 0:02:04]}  Rxc3 {[%clk 0:02:25]} 18. Bd2 {[%clk 0:02:04]}  Rxc2 {[%clk 0:01:54]} 19. Rf2 {[%clk 0:02:03]}  Qf6 {[%clk 0:01:43]} 20. Qe3 {[%clk 0:01:58]}  Qh4 {[%clk 0:01:25]} 21. Rg2 {[%clk 0:01:33]}  Rxd2 {[%clk 0:01:14]} 22. Rxd2 {[%clk 0:01:16]}  Qg3+ {[%clk 0:01:14]} 23. Rg2 {[%clk 0:01:16]}  Qxf3 {[%clk 0:01:14]} 24. Qxf3 {[%clk 0:01:16]}  Bxf3 {[%clk 0:01:14]} 25. Rg3 {[%clk 0:01:16]}  Be4 {[%clk 0:01:12]} 26. Rc1 {[%clk 0:01:16]}  Rb8 {[%clk 0:01:10]} 27. Rb3 {[%clk 0:01:14]}  h6 {[%clk 0:01:08]} 28. Rc7 {[%clk 0:01:13]}  b5 {[%clk 0:00:50]} 29. a4 {[%clk 0:00:34]}  b4 {[%clk 0:00:43]} 30. a5 {[%clk 0:00:32]}  f5 {[%clk 0:00:34]} 31. gxf5 {[%clk 0:00:27]}  exf5 {[%clk 0:00:34]} 32. Rxa7 {[%clk 0:00:18]}  Bc2 {[%clk 0:00:31]} 33. Rg3 {[%clk 0:00:16]}  b3 {[%clk 0:00:31]} 34. Rgxg7+ {[%clk 0:00:15]}  Kf8 {[%clk 0:00:31]} 35. Rh7 {[%clk 0:00:11]}  Kg8 {[%clk 0:00:31]} 36. Rag7+ {[%clk 0:00:11]}  Kf8 {[%clk 0:00:31]} 37. Rb7 {[%clk 0:00:12]}  Re8 {[%clk 0:00:27]} 38. Rh8# {[%clk 0:00:12]} 1-0


[Site "https://www.chess.com"]

[Event "Titled Tuesday Blitz February 28 Early 2023"]
[White "Winkels, Marcel"]
[Black "Kislov, Oleg"]
[WhiteFideId "1003887"]
[BlackFideId "13503774"]
[WhiteElo "1900"]
[BlackElo "2186"]
[Result "0-1"]
[Round "03"]
[TimeControl "180+2"]
[Date "2023.02.28"]
[WhiteClock "0:00:26"]
[BlackClock "0:00:21"]

1. e4 {[%clk 0:03:00]}  e6 {[%clk 0:02:57]} 2. d4 {[%clk 0:02:59]}  d5 {[%clk 0:02:57]} 3. Nc3 {[%clk 0:03:00]}  Nf6 {[%clk 0:02:57]} 4. Bg5 {[%clk 0:02:59]}  dxe4 {[%clk 0:02:57]} 5. Nxe4 {[%clk 0:02:58]}  Be7 {[%clk 0:02:57]} 6. Bxf6 {[%clk 0:02:58]}  gxf6 {[%clk 0:02:57]} 7. Nf3 {[%clk 0:02:57]}  b6 {[%clk 0:02:57]} 8. Bc4 {[%clk 0:02:56]}  Bb7 {[%clk 0:02:56]} 9. Ng3 {[%clk 0:02:53]}  c6 {[%clk 0:02:55]} 10. Qe2 {[%clk 0:02:50]}  Qc7 {[%clk 0:02:53]} 11. O-O-O {[%clk 0:02:48]}  Nd7 {[%clk 0:02:52]} 12. Rhe1 {[%clk 0:02:41]}  O-O-O {[%clk 0:02:51]} 13. Ne4 {[%clk 0:02:38]}  Rhg8 {[%clk 0:02:49]} 14. g3 {[%clk 0:02:36]}  f5 {[%clk 0:02:46]} 15. Ned2 {[%clk 0:02:30]}  Bf6 {[%clk 0:02:44]} 16. Ba6 {[%clk 0:02:23]}  c5 {[%clk 0:02:21]} 17. Bxb7+ {[%clk 0:02:21]}  Kxb7 {[%clk 0:02:18]} 18. Nc4 {[%clk 0:02:09]}  cxd4 {[%clk 0:01:50]} 19. Nxd4 {[%clk 0:02:06]}  Bxd4 {[%clk 0:01:13]} 20. Rxd4 {[%clk 0:02:04]}  Nc5 {[%clk 0:01:09]} 21. Red1 {[%clk 0:01:53]}  Rxd4 {[%clk 0:01:05]} 22. Rxd4 {[%clk 0:01:51]}  Rd8 {[%clk 0:01:03]} 23. Rxd8 {[%clk 0:01:40]}  Qxd8 {[%clk 0:01:03]} 24. Qf3+ {[%clk 0:01:39]}  Ne4 {[%clk 0:01:01]} 25. Qg2 {[%clk 0:01:32]}  Qd4 {[%clk 0:00:49]} 26. Qf1 {[%clk 0:01:06]}  Nxf2 {[%clk 0:00:37]} 27. c3 {[%clk 0:01:01]}  Nd3+ {[%clk 0:00:34]} 28. Kc2 {[%clk 0:00:57]}  Qxc4 {[%clk 0:00:31]} 29. Qxd3 {[%clk 0:00:56]}  Qxd3+ {[%clk 0:00:31]} 30. Kxd3 {[%clk 0:00:56]}  Kc6 {[%clk 0:00:29]} 31. Kd4 {[%clk 0:00:51]}  Kd6 {[%clk 0:00:28]} 32. c4 {[%clk 0:00:50]}  e5+ {[%clk 0:00:27]} 33. Kd3 {[%clk 0:00:49]}  Kc5 {[%clk 0:00:21]} 34. b3 {[%clk 0:00:48]}  Kb4 {[%clk 0:00:20]} 35. h3 {[%clk 0:00:43]}  h5 {[%clk 0:00:20]} 36. h4 {[%clk 0:00:41]}  Ka3 {[%clk 0:00:20]} 37. Kc3 {[%clk 0:00:40]}  a5 {[%clk 0:00:20]} 38. c5 {[%clk 0:00:24]}  bxc5 {[%clk 0:00:19]} 39. Kc4 {[%clk 0:00:25]}  Kxa2 {[%clk 0:00:20]} 40. Kxc5 {[%clk 0:00:25]}  Kxb3 {[%clk 0:00:20]} 41. Kd5 {[%clk 0:00:25]}  e4 {[%clk 0:00:20]} 42. Ke5 {[%clk 0:00:26]}  e3 {[%clk 0:00:20]} 43. Kxf5 {[%clk 0:00:26]}  e2 {[%clk 0:00:21]} 0-1


[Site "https://www.chess.com"]

[Event "Titled Tuesday Blitz February 28 Early 2023"]
[White "Ehlvest, Jaan"]
[Black "Gurevich, Ilya"]
[WhiteFideId "4500016"]
[BlackFideId "2000628"]
[WhiteElo "2442"]
[BlackElo "2119"]
[Result "1-0"]
[Round "03"]
[TimeControl "180+2"]
[Date "2023.02.28"]
[WhiteClock "0:00:18"]
[BlackClock "0:00:01"]

1. e4 {[%clk 0:01:37]}  c5 {[%clk 0:02:59]} 2. Nf3 {[%clk 0:01:37]}  e6 {[%clk 0:03:00]} 3. d4 {[%clk 0:01:35]}  cxd4 {[%clk 0:03:01]} 4. Nxd4 {[%clk 0:01:35]}  Nf6 {[%clk 0:03:01]} 5. Nc3 {[%clk 0:01:34]}  Nc6 {[%clk 0:03:02]} 6. Ndb5 {[%clk 0:01:34]}  Bb4 {[%clk 0:03:01]} 7. a3 {[%clk 0:01:34]}  Bxc3+ {[%clk 0:03:02]} 8. Nxc3 {[%clk 0:01:35]}  d5 {[%clk 0:03:02]} 9. exd5 {[%clk 0:01:34]}  exd5 {[%clk 0:03:03]} 10. Bd3 {[%clk 0:01:34]}  O-O {[%clk 0:03:04]} 11. O-O {[%clk 0:01:35]}  d4 {[%clk 0:03:04]} 12. Ne2 {[%clk 0:01:34]}  Bg4 {[%clk 0:03:05]} 13. h3 {[%clk 0:01:34]}  Bh5 {[%clk 0:03:05]} 14. f4 {[%clk 0:01:34]}  Bxe2 {[%clk 0:03:02]} 15. Qxe2 {[%clk 0:01:34]}  Re8 {[%clk 0:03:01]} 16. Qf3 {[%clk 0:01:34]}  Nd5 {[%clk 0:03:01]} 17. Bd2 {[%clk 0:01:33]}  Ne3 {[%clk 0:02:58]} 18. Rfe1 {[%clk 0:01:33]}  Qb6 {[%clk 0:02:58]} 19. b4 {[%clk 0:01:33]}  Rad8 {[%clk 0:02:57]} 20. Kh1 {[%clk 0:01:27]}  a6 {[%clk 0:02:38]} 21. c4 {[%clk 0:01:14]}  Re7 {[%clk 0:02:04]} 22. Rac1 {[%clk 0:01:08]}  Rde8 {[%clk 0:01:59]} 23. c5 {[%clk 0:01:03]}  Qc7 {[%clk 0:01:51]} 24. a4 {[%clk 0:01:03]}  Nd8 {[%clk 0:01:03]} 25. b5 {[%clk 0:00:59]}  axb5 {[%clk 0:00:53]} 26. axb5 {[%clk 0:00:59]}  f6 {[%clk 0:00:46]} 27. Bb4 {[%clk 0:00:37]}  Kh8 {[%clk 0:00:15]} 28. c6 {[%clk 0:00:36]}  Re6 {[%clk 0:00:15]} 29. Ba5 {[%clk 0:00:29]}  b6 {[%clk 0:00:14]} 30. Bd2 {[%clk 0:00:27]}  Nf7 {[%clk 0:00:14]} 31. Qh5 {[%clk 0:00:25]}  Nh6 {[%clk 0:00:11]} 32. Qf3 {[%clk 0:00:24]}  Qd6 {[%clk 0:00:08]} 33. Ra1 {[%clk 0:00:22]}  Nhf5 {[%clk 0:00:07]} 34. Rec1 {[%clk 0:00:21]}  Nd5 {[%clk 0:00:06]} 35. Bxf5 {[%clk 0:00:20]}  Re2 {[%clk 0:00:05]} 36. Qh5 {[%clk 0:00:19]}  g6 {[%clk 0:00:03]} 37. Bxg6 {[%clk 0:00:18]}  R8e7 {[%clk 0:00:02]} 38. Bxh7 {[%clk 0:00:19]}  Rxh7 {[%clk 0:00:01]} 39. Qxe2 {[%clk 0:00:18]} 1-0


[Site "https://www.chess.com"]

[Event "Titled Tuesday Blitz February 28 Early 2023"]
[White "Mendez Fortes, Eduardo Jesus"]
[Black "Levine, David"]
[WhiteFideId "3502376"]
[BlackFideId "2011611"]
[WhiteElo "2307"]
[BlackElo "2118"]
[Result "1-0"]
[Round "03"]
[TimeControl "180+2"]
[Date "2023.02.28"]
[WhiteClock "0:00:46"]
[BlackClock "0:00:06"]

1. e4 {[%clk 0:02:58]}  e5 {[%clk 0:02:59]} 2. Nf3 {[%clk 0:02:57]}  Nc6 {[%clk 0:02:58]} 3. Bb5 {[%clk 0:02:57]}  a6 {[%clk 0:02:58]} 4. Ba4 {[%clk 0:02:56]}  Nf6 {[%clk 0:02:58]} 5. O-O {[%clk 0:02:56]}  Be7 {[%clk 0:02:58]} 6. Re1 {[%clk 0:02:55]}  b5 {[%clk 0:02:57]} 7. Bb3 {[%clk 0:02:54]}  d6 {[%clk 0:02:57]} 8. c3 {[%clk 0:02:52]}  O-O {[%clk 0:02:54]} 9. h3 {[%clk 0:02:50]}  Bb7 {[%clk 0:02:54]} 10. d4 {[%clk 0:02:49]}  Re8 {[%clk 0:02:51]} 11. Nbd2 {[%clk 0:02:46]}  Bf8 {[%clk 0:02:49]} 12. a4 {[%clk 0:02:40]}  h6 {[%clk 0:02:44]} 13. Bc2 {[%clk 0:02:37]}  Nb8 {[%clk 0:02:34]} 14. Bd3 {[%clk 0:02:25]}  c6 {[%clk 0:02:31]} 15. b3 {[%clk 0:02:20]}  Nbd7 {[%clk 0:02:30]} 16. Bb2 {[%clk 0:02:19]}  Qc7 {[%clk 0:02:21]} 17. Nf1 {[%clk 0:02:11]}  g6 {[%clk 0:02:21]} 18. Ng3 {[%clk 0:02:10]}  Bg7 {[%clk 0:02:21]} 19. Qd2 {[%clk 0:02:08]}  Nf8 {[%clk 0:02:10]} 20. Nh2 {[%clk 0:01:52]}  Ne6 {[%clk 0:02:06]} 21. Ng4 {[%clk 0:01:44]}  Nxg4 {[%clk 0:02:01]} 22. hxg4 {[%clk 0:01:45]}  Nf4 {[%clk 0:01:59]} 23. Ne2 {[%clk 0:01:43]}  Ne6 {[%clk 0:01:46]} 24. axb5 {[%clk 0:01:34]}  cxb5 {[%clk 0:01:33]} 25. Rac1 {[%clk 0:01:30]}  Qb6 {[%clk 0:01:25]} 26. d5 {[%clk 0:01:26]}  Nc5 {[%clk 0:01:21]} 27. Bc2 {[%clk 0:01:26]}  a5 {[%clk 0:01:11]} 28. Ra1 {[%clk 0:01:25]}  a4 {[%clk 0:00:53]} 29. bxa4 {[%clk 0:01:22]}  Nxa4 {[%clk 0:00:52]} 30. Ba3 {[%clk 0:01:21]}  Rec8 {[%clk 0:00:46]} 31. Bb4 {[%clk 0:01:20]}  Nxc3 {[%clk 0:00:42]} 32. Nxc3 {[%clk 0:01:14]}  Bf8 {[%clk 0:00:29]} 33. Rxa8 {[%clk 0:01:05]}  Rxa8 {[%clk 0:00:25]} 34. Qe3 {[%clk 0:00:45]}  Qxe3 {[%clk 0:00:06]} 35. fxe3 {[%clk 0:00:46]} 1-0


[Site "https://www.chess.com"]

[Event "Titled Tuesday Blitz February 28 Early 2023"]
[White "Bilan, Danila"]
[Black "Flis, Pawel"]
[WhiteFideId "24161918"]
[BlackFideId "1112864"]
[WhiteElo "2182"]
[BlackElo "1822"]
[Result "1-0"]
[Round "03"]
[TimeControl "180+2"]
[Date "2023.02.28"]
[WhiteClock "0:00:31"]
[BlackClock "0:00:04"]

1. d4 {[%clk 0:02:59]}  c5 {[%clk 0:02:59]} 2. e3 {[%clk 0:02:59]}  Nf6 {[%clk 0:02:59]} 3. Nf3 {[%clk 0:02:58]}  g6 {[%clk 0:02:59]} 4. c4 {[%clk 0:02:53]}  cxd4 {[%clk 0:02:56]} 5. Nxd4 {[%clk 0:02:50]}  Bg7 {[%clk 0:02:55]} 6. Nc3 {[%clk 0:02:51]}  O-O {[%clk 0:02:55]} 7. Be2 {[%clk 0:02:50]}  d5 {[%clk 0:02:55]} 8. O-O {[%clk 0:02:48]}  dxc4 {[%clk 0:02:55]} 9. Bxc4 {[%clk 0:02:49]}  b6 {[%clk 0:02:55]} 10. Qf3 {[%clk 0:02:44]}  Qc7 {[%clk 0:02:51]} 11. Qxa8 {[%clk 0:02:40]}  Qxc4 {[%clk 0:02:22]} 12. Qxa7 {[%clk 0:01:57]}  Ba6 {[%clk 0:02:07]} 13. Re1 {[%clk 0:01:53]}  Nbd7 {[%clk 0:02:07]} 14. Bd2 {[%clk 0:01:35]}  Ne5 {[%clk 0:01:50]} 15. Qxb6 {[%clk 0:01:11]}  Nd3 {[%clk 0:01:49]} 16. b3 {[%clk 0:01:04]}  Qc8 {[%clk 0:01:33]} 17. Red1 {[%clk 0:00:58]}  Nd7 {[%clk 0:01:30]} 18. Qc6 {[%clk 0:00:48]}  Qd8 {[%clk 0:01:02]} 19. Qxa6 {[%clk 0:00:47]}  N7c5 {[%clk 0:01:01]} 20. Qc4 {[%clk 0:00:45]}  Qc8 {[%clk 0:00:52]} 21. b4 {[%clk 0:00:39]}  Qg4 {[%clk 0:00:11]} 22. bxc5 {[%clk 0:00:36]}  Nb2 {[%clk 0:00:11]} 23. Qe2 {[%clk 0:00:35]}  Qg5 {[%clk 0:00:04]} 24. Rdb1 {[%clk 0:00:31]} 1-0


[Site "https://www.chess.com"]

[Event "Titled Tuesday Blitz February 28 Early 2023"]
[White "Castillo Pena, Patricia Evarista"]
[Black "Demchenko, Anton"]
[WhiteFideId "6412106"]
[BlackFideId "4160258"]
[WhiteElo "1919"]
[BlackElo "2545"]
[Result "0-1"]
[Round "03"]
[TimeControl "180+2"]
[Date "2023.02.28"]
[WhiteClock "0:00:07"]
[BlackClock "0:00:14"]

1. d4 {[%clk 0:03:00]}  d5 {[%clk 0:02:51]} 2. Nf3 {[%clk 0:03:00]}  Nf6 {[%clk 0:02:49]} 3. e3 {[%clk 0:02:59]}  Bg4 {[%clk 0:02:48]} 4. c4 {[%clk 0:02:58]}  c6 {[%clk 0:02:47]} 5. Qb3 {[%clk 0:02:52]}  Qb6 {[%clk 0:02:43]} 6. Ne5 {[%clk 0:02:49]}  Be6 {[%clk 0:02:32]} 7. c5 {[%clk 0:02:46]}  Qc7 {[%clk 0:02:31]} 8. Nc3 {[%clk 0:02:43]}  Nbd7 {[%clk 0:02:28]} 9. f4 {[%clk 0:02:39]}  Bf5 {[%clk 0:02:28]} 10. Qd1 {[%clk 0:02:32]}  h5 {[%clk 0:02:26]} 11. Be2 {[%clk 0:02:26]}  e6 {[%clk 0:02:26]} 12. b4 {[%clk 0:02:26]}  g6 {[%clk 0:02:17]} 13. O-O {[%clk 0:02:24]}  a6 {[%clk 0:02:01]} 14. a4 {[%clk 0:02:23]}  Ne4 {[%clk 0:01:42]} 15. Bd2 {[%clk 0:02:17]}  Nxe5 {[%clk 0:01:26]} 16. fxe5 {[%clk 0:02:13]}  Nxc3 {[%clk 0:01:25]} 17. Bxc3 {[%clk 0:02:13]}  Bh6 {[%clk 0:01:25]} 18. Bd2 {[%clk 0:02:05]}  O-O {[%clk 0:01:18]} 19. e4 {[%clk 0:01:30]}  Bxd2 {[%clk 0:01:17]} 20. exf5 {[%clk 0:01:29]}  Be3+ {[%clk 0:01:16]} 21. Kh1 {[%clk 0:01:29]}  exf5 {[%clk 0:01:16]} 22. Rf3 {[%clk 0:01:19]}  Bg5 {[%clk 0:01:05]} 23. Rg3 {[%clk 0:01:13]}  Qe7 {[%clk 0:01:04]} 24. Bxh5 {[%clk 0:00:55]}  Kg7 {[%clk 0:01:03]} 25. Be2 {[%clk 0:00:51]}  Rh8 {[%clk 0:01:01]} 26. Rf3 {[%clk 0:00:42]}  Rh6 {[%clk 0:00:50]} 27. Raa3 {[%clk 0:00:42]}  Rah8 {[%clk 0:00:47]} 28. h3 {[%clk 0:00:40]}  Rh4 {[%clk 0:00:47]} 29. Rad3 {[%clk 0:00:36]}  Bf4 {[%clk 0:00:39]} 30. Kg1 {[%clk 0:00:32]}  Qg5 {[%clk 0:00:38]} 31. Qe1 {[%clk 0:00:28]}  Bc1 {[%clk 0:00:32]} 32. Rg3 {[%clk 0:00:20]}  Qh6 {[%clk 0:00:30]} 33. Rd1 {[%clk 0:00:15]}  Be3+ {[%clk 0:00:28]} 34. Kf1 {[%clk 0:00:14]}  Bxd4 {[%clk 0:00:23]} 35. e6 {[%clk 0:00:09]}  Re4 {[%clk 0:00:18]} 36. Qd2 {[%clk 0:00:07]}  Qxd2 {[%clk 0:00:17]} 37. Rxd2 {[%clk 0:00:08]}  fxe6 {[%clk 0:00:17]} 38. Rgd3 {[%clk 0:00:07]}  Bf6 {[%clk 0:00:16]} 39. Bf3 {[%clk 0:00:07]}  Rxb4 {[%clk 0:00:14]} 0-1


[Site "https://www.chess.com"]

[Event "Titled Tuesday Blitz February 28 Early 2023"]
[White "Boraso, Alessio"]
[Black "Atanasov, Anthony"]
[WhiteFideId "848077"]
[BlackFideId "2623897"]
[WhiteElo "2286"]
[BlackElo "2070"]
[Result "1-0"]
[Round "03"]
[TimeControl "180+2"]
[Date "2023.02.28"]
[WhiteClock "0:00:05"]
[BlackClock "0:00:57"]

1. e4 {[%clk 0:03:00]}  e5 {[%clk 0:02:54]} 2. Nf3 {[%clk 0:02:59]}  Nf6 {[%clk 0:02:54]} 3. Nc3 {[%clk 0:02:56]}  Nc6 {[%clk 0:02:53]} 4. a3 {[%clk 0:02:56]}  a6 {[%clk 0:02:48]} 5. d4 {[%clk 0:02:51]}  exd4 {[%clk 0:02:49]} 6. Nxd4 {[%clk 0:02:51]}  Nxe4 {[%clk 0:02:49]} 7. Nxc6 {[%clk 0:02:28]}  Nxc3 {[%clk 0:02:47]} 8. Nxd8 {[%clk 0:02:08]}  Nxd1 {[%clk 0:02:41]} 9. Nxf7 {[%clk 0:01:49]}  Kxf7 {[%clk 0:02:42]} 10. Kxd1 {[%clk 0:01:46]}  d5 {[%clk 0:02:40]} 11. Be2 {[%clk 0:01:30]}  Bc5 {[%clk 0:02:34]} 12. Be3 {[%clk 0:01:10]}  Bxe3 {[%clk 0:02:28]} 13. fxe3 {[%clk 0:01:11]}  Bf5 {[%clk 0:02:21]} 14. Bd3 {[%clk 0:01:04]}  Bxd3 {[%clk 0:02:04]} 15. cxd3 {[%clk 0:01:04]}  Ke6 {[%clk 0:02:03]} 16. Ke2 {[%clk 0:01:04]}  Rhf8 {[%clk 0:02:02]} 17. Rhf1 {[%clk 0:01:04]}  c6 {[%clk 0:01:59]} 18. g4 {[%clk 0:01:03]}  Rae8 {[%clk 0:01:55]} 19. h4 {[%clk 0:00:59]}  g6 {[%clk 0:01:47]} 20. b4 {[%clk 0:00:54]}  Kd6 {[%clk 0:01:46]} 21. d4 {[%clk 0:00:38]}  h6 {[%clk 0:01:42]} 22. h5 {[%clk 0:00:28]}  g5 {[%clk 0:01:36]} 23. a4 {[%clk 0:00:09]}  Ra8 {[%clk 0:01:32]} 24. a5 {[%clk 0:00:07]}  Ke6 {[%clk 0:01:30]} 25. Rxf8 {[%clk 0:00:06]}  Rxf8 {[%clk 0:01:29]} 26. Rf1 {[%clk 0:00:07]}  Re8 {[%clk 0:01:28]} 27. Rf5 {[%clk 0:00:06]}  Re7 {[%clk 0:01:27]} 28. Kd3 {[%clk 0:00:07]}  Rf7 {[%clk 0:01:24]} 29. Rxf7 {[%clk 0:00:04]}  Kxf7 {[%clk 0:01:25]} 30. Kd2 {[%clk 0:00:02]}  Ke7 {[%clk 0:01:25]} 31. Kc3 {[%clk 0:00:03]}  Kd7 {[%clk 0:01:25]} 32. Kd3 {[%clk 0:00:04]}  Kc7 {[%clk 0:01:26]} 33. Ke2 {[%clk 0:00:05]}  b6 {[%clk 0:01:26]} 34. Kd3 {[%clk 0:00:03]}  Kd6 {[%clk 0:01:25]} 35. axb6 {[%clk 0:00:02]}  Kd7 {[%clk 0:01:25]} 36. e4 {[%clk 0:00:03]}  dxe4+ {[%clk 0:01:25]} 37. Kxe4 {[%clk 0:00:04]}  Kc8 {[%clk 0:01:25]} 38. d5 {[%clk 0:00:02]}  cxd5+ {[%clk 0:00:58]} 39. Kxd5 {[%clk 0:00:03]}  Kb7 {[%clk 0:00:59]} 40. Kc5 {[%clk 0:00:03]}  Kc8 {[%clk 0:01:00]} 41. Kc6 {[%clk 0:00:03]}  Kb8 {[%clk 0:01:00]} 42. b7 {[%clk 0:00:03]}  a5 {[%clk 0:00:57]} 43. bxa5 {[%clk 0:00:04]}  Ka7 {[%clk 0:00:57]} 44. Kc7 {[%clk 0:00:05]} 1-0


[Site "https://www.chess.com"]

[Event "Titled Tuesday Blitz February 28 Early 2023"]
[White "Gatterer, Florian"]
[Black "Souleidis, Georgios"]
[WhiteFideId "811688"]
[BlackFideId "4206827"]
[WhiteElo "2221"]
[BlackElo "2401"]
[Result "1/2-1/2"]
[Round "03"]
[TimeControl "180+2"]
[Date "2023.02.28"]
[WhiteClock "0:00:51"]
[BlackClock "0:00:47"]

1. d4 {[%clk 0:02:57]}  Nf6 {[%clk 0:03:00]} 2. Nf3 {[%clk 0:02:53]}  g6 {[%clk 0:03:00]} 3. g3 {[%clk 0:02:53]}  Bg7 {[%clk 0:03:00]} 4. Bg2 {[%clk 0:02:54]}  O-O {[%clk 0:03:01]} 5. O-O {[%clk 0:02:54]}  d6 {[%clk 0:03:02]} 6. Re1 {[%clk 0:02:53]}  c6 {[%clk 0:02:55]} 7. e4 {[%clk 0:02:52]}  Qc7 {[%clk 0:02:54]} 8. Nc3 {[%clk 0:02:47]}  e5 {[%clk 0:02:53]} 9. h3 {[%clk 0:02:48]}  Re8 {[%clk 0:02:52]} 10. Be3 {[%clk 0:02:48]}  b6 {[%clk 0:02:47]} 11. Qd2 {[%clk 0:02:47]}  Nbd7 {[%clk 0:02:37]} 12. Rad1 {[%clk 0:02:47]}  Bb7 {[%clk 0:02:32]} 13. dxe5 {[%clk 0:02:36]}  dxe5 {[%clk 0:02:33]} 14. Qd6 {[%clk 0:02:31]}  Qxd6 {[%clk 0:02:30]} 15. Rxd6 {[%clk 0:02:32]}  Bf8 {[%clk 0:02:30]} 16. Rdd1 {[%clk 0:02:16]}  Kg7 {[%clk 0:02:15]} 17. Bf1 {[%clk 0:02:07]}  Bc5 {[%clk 0:02:15]} 18. a3 {[%clk 0:01:54]}  Bxe3 {[%clk 0:02:10]} 19. Rxe3 {[%clk 0:01:54]}  b5 {[%clk 0:01:38]} 20. Rd6 {[%clk 0:01:42]}  a5 {[%clk 0:01:19]} 21. g4 {[%clk 0:01:31]}  h6 {[%clk 0:01:16]} 22. Re1 {[%clk 0:01:26]}  b4 {[%clk 0:01:16]} 23. Na4 {[%clk 0:01:24]}  Rac8 {[%clk 0:00:53]} 24. Red1 {[%clk 0:01:20]}  Re7 {[%clk 0:00:50]} 25. Nd2 {[%clk 0:01:04]}  c5 {[%clk 0:00:48]} 26. Bb5 {[%clk 0:00:51]}  Rc7 {[%clk 0:00:47]} 27. f3 {[%clk 0:00:51]} 1/2-1/2


[Site "https://www.chess.com"]

[Event "Titled Tuesday Blitz February 28 Early 2023"]
[White "Petrova, Irina"]
[Black "Omelja, Artem"]
[WhiteFideId "14124122"]
[BlackFideId "14119846"]
[WhiteElo "2084"]
[BlackElo "2404"]
[Result "1/2-1/2"]
[Round "03"]
[TimeControl "180+2"]
[Date "2023.02.28"]
[WhiteClock "0:00:04"]
[BlackClock "0:00:02"]

1. e4 {[%clk 0:03:00]}  c5 {[%clk 0:02:58]} 2. Nf3 {[%clk 0:03:00]}  Nc6 {[%clk 0:02:57]} 3. Bb5 {[%clk 0:03:00]}  g6 {[%clk 0:02:56]} 4. Bxc6 {[%clk 0:02:59]}  bxc6 {[%clk 0:02:55]} 5. O-O {[%clk 0:02:59]}  Bg7 {[%clk 0:02:56]} 6. c3 {[%clk 0:02:58]}  d6 {[%clk 0:02:55]} 7. Re1 {[%clk 0:02:58]}  Bg4 {[%clk 0:02:50]} 8. h3 {[%clk 0:02:57]}  Bxf3 {[%clk 0:02:50]} 9. Qxf3 {[%clk 0:02:58]}  e5 {[%clk 0:02:50]} 10. d3 {[%clk 0:02:48]}  Ne7 {[%clk 0:02:50]} 11. Nd2 {[%clk 0:02:47]}  O-O {[%clk 0:02:50]} 12. Nc4 {[%clk 0:02:46]}  Qc7 {[%clk 0:02:50]} 13. b3 {[%clk 0:02:36]}  h6 {[%clk 0:02:49]} 14. Qg3 {[%clk 0:02:12]}  Kh7 {[%clk 0:02:42]} 15. Bd2 {[%clk 0:02:07]}  f5 {[%clk 0:02:42]} 16. Rac1 {[%clk 0:01:52]}  f4 {[%clk 0:02:41]} 17. Qg4 {[%clk 0:01:47]}  Rf6 {[%clk 0:02:36]} 18. d4 {[%clk 0:01:38]}  h5 {[%clk 0:02:31]} 19. Qf3 {[%clk 0:01:32]}  Rd8 {[%clk 0:02:09]} 20. dxe5 {[%clk 0:01:24]}  dxe5 {[%clk 0:02:09]} 21. Rcd1 {[%clk 0:01:21]}  Nc8 {[%clk 0:02:09]} 22. Bc1 {[%clk 0:01:19]}  Rff8 {[%clk 0:02:06]} 23. Ba3 {[%clk 0:01:17]}  Qe7 {[%clk 0:01:51]} 24. Rxd8 {[%clk 0:01:13]}  Rxd8 {[%clk 0:01:52]} 25. Rd1 {[%clk 0:01:13]}  Nb6 {[%clk 0:01:44]} 26. Rxd8 {[%clk 0:00:58]}  Qxd8 {[%clk 0:01:45]} 27. Bxc5 {[%clk 0:00:57]}  Nxc4 {[%clk 0:01:45]} 28. bxc4 {[%clk 0:00:58]}  Qa5 {[%clk 0:01:39]} 29. Be7 {[%clk 0:00:40]}  Qxa2 {[%clk 0:01:37]} 30. Qd1 {[%clk 0:00:40]}  Qxc4 {[%clk 0:01:37]} 31. Qd7 {[%clk 0:00:39]}  Qf7 {[%clk 0:01:36]} 32. Qxa7 {[%clk 0:00:37]}  f3 {[%clk 0:01:19]} 33. Bc5 {[%clk 0:00:35]}  Qxa7 {[%clk 0:00:39]} 34. Bxa7 {[%clk 0:00:35]}  fxg2 {[%clk 0:00:40]} 35. Kxg2 {[%clk 0:00:35]}  Kg8 {[%clk 0:00:40]} 36. Kf3 {[%clk 0:00:34]}  Kf7 {[%clk 0:00:40]} 37. Bc5 {[%clk 0:00:32]}  Ke6 {[%clk 0:00:40]} 38. Ke3 {[%clk 0:00:30]}  g5 {[%clk 0:00:39]} 39. f3 {[%clk 0:00:29]}  Bh6 {[%clk 0:00:38]} 40. Kd3 {[%clk 0:00:29]}  Bg7 {[%clk 0:00:34]} 41. Be3 {[%clk 0:00:28]}  Bf6 {[%clk 0:00:34]} 42. Bc5 {[%clk 0:00:28]}  Bd8 {[%clk 0:00:26]} 43. Ke3 {[%clk 0:00:21]}  Kf6 {[%clk 0:00:25]} 44. Kd3 {[%clk 0:00:20]}  Ba5 {[%clk 0:00:17]} 45. Be3 {[%clk 0:00:19]}  Bd8 {[%clk 0:00:14]} 46. Bc5 {[%clk 0:00:19]}  Ke6 {[%clk 0:00:12]} 47. Ke3 {[%clk 0:00:16]}  Bf6 {[%clk 0:00:12]} 48. Kd3 {[%clk 0:00:15]}  Kd7 {[%clk 0:00:13]} 49. Ke3 {[%clk 0:00:13]}  Kc7 {[%clk 0:00:13]} 50. Kd3 {[%clk 0:00:13]}  Kb7 {[%clk 0:00:13]} 51. Be3 {[%clk 0:00:14]}  Kc7 {[%clk 0:00:11]} 52. Bc5 {[%clk 0:00:13]}  Bd8 {[%clk 0:00:10]} 53. Ke3 {[%clk 0:00:12]}  Kb7 {[%clk 0:00:09]} 54. Kd3 {[%clk 0:00:12]}  Ka6 {[%clk 0:00:07]} 55. Be3 {[%clk 0:00:10]}  Kb5 {[%clk 0:00:07]} 56. Bf2 {[%clk 0:00:10]}  Be7 {[%clk 0:00:06]} 57. Bg3 {[%clk 0:00:10]}  Bd6 {[%clk 0:00:04]} 58. Bf2 {[%clk 0:00:10]}  Bc5 {[%clk 0:00:04]} 59. Bg3 {[%clk 0:00:10]}  Bd6 {[%clk 0:00:04]} 60. Bf2 {[%clk 0:00:10]}  Bc7 {[%clk 0:00:04]} 61. Be3 {[%clk 0:00:09]}  Bd6 {[%clk 0:00:03]} 62. Bxg5 {[%clk 0:00:09]}  c5 {[%clk 0:00:04]} 63. Bf6 {[%clk 0:00:09]}  c4+ {[%clk 0:00:04]} 64. Kc2 {[%clk 0:00:09]}  Kc5 {[%clk 0:00:03]} 65. Bg5 {[%clk 0:00:09]}  Bc7 {[%clk 0:00:04]} 66. Be3+ {[%clk 0:00:09]}  Kd6 {[%clk 0:00:04]} 67. Ba7 {[%clk 0:00:02]}  Ke6 {[%clk 0:00:03]} 68. Be3 {[%clk 0:00:02]}  Bd6 {[%clk 0:00:03]} 69. Kd2 {[%clk 0:00:03]}  Be7 {[%clk 0:00:03]} 70. Kc2 {[%clk 0:00:04]}  Bd6 {[%clk 0:00:03]} 71. Kd2 {[%clk 0:00:04]}  Be7 {[%clk 0:00:04]} 72. Kc2 {[%clk 0:00:04]}  Bd6 {[%clk 0:00:02]} 1/2-1/2


[Site "https://www.chess.com"]